bitfinex/quotes_BTCUSD_20240605
["timestamp","ask_amount","ask_price","bid_price","bid_amount"]
[1717589558155,0.95711171,70862.0,70861.0,0.008946]
[1717589558603,0.95411171,70862.0,70861.0,0.008946]
[1717589558769,0.95011171,70862.0,70861.0,0.008946]
[1717589558966,0.95711171,70862.0,70861.0,0.008946]
[1717589559625,0.95011171,70862.0,70861.0,0.008946]
[1717589560024,0.95711171,70862.0,70861.0,0.008946]
[1717589560426,1.11001171,70862.0,70861.0,0.008946]
[1717589561007,1.12001171,70862.0,70861.0,0.008946]
[1717589561378,1.13101171,70862.0,70861.0,0.008946]
[1717589561578,1.12101171,70862.0,70861.0,0.008946]
[1717589561781,1.11001171,70862.0,70861.0,0.008946]
[1717589561992,1.12201171,70862.0,70861.0,0.008946]
[1717589562171,0.88111171,70862.0,70861.0,0.008946]
[1717589562915,1.12591171,70862.0,70861.0,0.008946]
[1717589563318,1.14034103,70862.0,70861.0,0.008946]
[1717589563838,1.15334103,70862.0,70861.0,0.008397]
[1717589564070,1.14134103,70862.0,70861.0,0.008397]
[1717589564357,1.12834103,70862.0,70861.0,0.008397]
[1717589564563,1.07344103,70862.0,70861.0,0.008397]
[1717589564774,1.15334103,70862.0,70861.0,0.008397]
[1717589564961,1.13891171,70862.0,70861.0,0.008397]
[1717589565097,1.20941171,70862.0,70861.0,0.008397]
[1717589565524,1.19741171,70862.0,70861.0,0.008397]
[1717589565786,1.21190567,70862.0,70861.0,0.008397]
[1717589566016,1.22490567,70862.0,70861.0,0.008397]
[1717589566208,1.06050567,70862.0,70861.0,0.008397]
[1717589566662,1.21390567,70862.0,70861.0,0.008397]
[1717589567039,1.20090567,70862.0,70861.0,0.008397]
[1717589567194,1.18790567,70862.0,70861.0,0.008397]
[1717589567797,1.20190567,70862.0,70861.0,0.008397]
[1717589568021,1.21390567,70862.0,70861.0,0.008397]
[1717589568611,1.20190567,70862.0,70861.0,0.008397]
[1717589569036,1.21490567,70862.0,70861.0,0.008397]
[1717589569859,1.21474693,70862.0,70861.0,0.008397]
[1717589571262,1.26318493,70862.0,70861.0,0.008397]
[1717589571441,1.39818493,70862.0,70861.0,0.008397]
[1717589571672,1.41818493,70862.0,70861.0,0.008397]
[1717589571883,1.40384971,70862.0,70861.0,0.008397]
[1717589572304,0.331139,70852.0,70851.0,0.002946]
[1717589572507,0.398039,70852.0,70851.0,0.002946]
[1717589572839,0.40532343,70852.0,70851.0,0.002946]
[1717589574218,0.40632343,70852.0,70851.0,0.002946]
[1717589574622,0.40832343,70852.0,70851.0,0.002946]
[1717589574831,0.40732343,70852.0,70851.0,0.002946]
[1717589575025,0.40932343,70852.0,70851.0,0.002946]
[1717589579401,0.34242343,70852.0,70851.0,0.002946]
[1717589579775,0.40932343,70852.0,70851.0,0.002946]
[1717589585830,0.42932343,70852.0,70851.0,0.002946]
[1717589586679,0.34242343,70852.0,70851.0,0.002946]
[1717589586836,0.40932343,70852.0,70851.0,0.002946]
[1717589587634,0.85602036,70852.0,70851.0,0.002946]
[1717589588925,0.85402036,70852.0,70851.0,0.002946]
[1717589589246,0.87059204,70852.0,70851.0,0.002946]
[1717589589444,0.88159204,70852.0,70851.0,0.002946]
[1717589589852,0.86359204,70852.0,70851.0,0.002946]
[1717589590293,0.86159204,70852.0,70851.0,0.002946]
[1717589590667,0.88159204,70852.0,70851.0,0.002946]
[1717589590873,0.89359204,70852.0,70851.0,0.002946]
[1717589592458,0.89359204,70852.0,70851.0,0.002946]
[1717589593179,0.86859204,70852.0,70851.0,0.002946]
[1717589593547,0.89459204,70852.0,70851.0,0.002946]
[1717589593756,0.88059204,70852.0,70851.0,0.002946]
[1717589594010,0.86859204,70852.0,70851.0,0.002946]
[1717589594219,0.88259204,70852.0,70851.0,0.002946]
[1717589594432,0.89659204,70852.0,70851.0,0.002946]
[1717589594932,0.88259204,70852.0,70851.0,0.002946]
[1717589595134,0.89659204,70852.0,70851.0,0.002946]
[1717589595873,0.88259204,70852.0,70851.0,0.002946]
[1717589596238,0.89659204,70852.0,70851.0,0.002946]
[1717589596440,0.88259204,70852.0,70851.0,0.002946]
[1717589596827,0.89659204,70852.0,70851.0,0.002946]
[1717589597412,0.94261649,70852.0,70851.0,0.002946]
[1717589598529,0.92261649,70852.0,70851.0,0.002946]
[1717589598731,0.94261649,70852.0,70851.0,0.002946]
[1717589601059,0.89659204,70852.0,70851.0,0.002946]
[1717589601746,0.82969204,70852.0,70851.0,0.002946]
[1717589601929,0.89659204,70852.0,70851.0,0.002946]
[1717589605088,0.94261649,70852.0,70851.0,0.002946]
[1717589608841,0.95715828,70852.0,70851.0,0.002946]
[1717589609027,0.89025828,70852.0,70851.0,0.002946]
[1717589609294,0.91113383,70852.0,70851.0,0.002946]
[1717589610344,0.89113383,70852.0,70851.0,0.002946]
[1717589610552,0.91113383,70852.0,70851.0,0.002946]
[1717589611970,0.91164308,70852.0,70851.0,0.002946]
[1717589613251,0.91171643,70852.0,70851.0,0.002946]
[1717589615396,0.54253843,70852.0,70851.0,0.002946]
[1717589615707,0.60943843,70852.0,70851.0,0.002946]
[1717589615999,0.59431404,70852.0,70851.0,0.002946]
[1717589616499,0.61431404,70852.0,70851.0,0.002946]
[1717589616660,0.59431404,70852.0,70851.0,0.002946]
[1717589616862,0.62966519,70852.0,70851.0,0.002946]
[1717589617264,0.91194319,70852.0,70851.0,0.002946]
[1717589617468,0.95422806,70852.0,70851.0,0.002946]
[1717589617668,0.88732806,70852.0,70851.0,0.002946]
[1717589617899,0.95422806,70852.0,70851.0,0.002946]
[1717589618495,0.95453955,70852.0,70851.0,0.002946]
[1717589619116,0.95455708,70852.0,70851.0,0.002946]
[1717589619726,0.97755708,70852.0,70851.0,0.002946]
[1717589621301,1.10807084,70852.0,70851.0,0.002946]
[1717589621843,1.08807084,70852.0,70851.0,0.002946]
[1717589622041,0.717828,70852.0,70851.0,0.002946]
[1717589622261,0.69647415,70852.0,70851.0,0.002946]
[1717589622545,0.61731404,70852.0,70851.0,0.002946]
[1717589623321,0.63337195,70852.0,70851.0,0.002946]
[1717589623937,0.67567262,70852.0,70851.0,0.002946]
[1717589625309,0.6956757,70852.0,70851.0,0.002946]
[1717589626417,0.6756757,70852.0,70851.0,0.002946]
[1717589629043,0.6956757,70852.0,70851.0,0.002946]
[1717589629239,0.6756757,70852.0,70851.0,0.002946]
[1717589630364,0.63337195,70852.0,70851.0,0.002946]
[1717589630541,0.61037195,70852.0,70851.0,0.002946]
[1717589630940,0.59431404,70852.0,70851.0,0.002946]
[1717589633504,0.52741404,70852.0,70851.0,0.002946]
[1717589633672,0.59431404,70852.0,70851.0,0.002946]
[1717589634157,0.24185611,70852.0,70851.0,0.002946]
[1717589634359,0.24185611,70852.0,70851.0,0.09612678]
[1717589634360,0.22528443,70852.0,70851.0,0.09612678]
[1717589634793,0.03809378,70852.0,70851.0,0.15959809]
[1717589634998,0.03809378,70852.0,70851.0,0.18075519]
[1717589635199,0.014,70852.0,70851.0,0.15954159]
[1717589635328,0.0669,70857.0,70856.0,0.02]
[1717589635531,0.0669,70857.0,70856.0,0.10750107]
[1717589635749,0.01014415,70857.0,70856.0,0.10750107]
[1717589636129,0.2569,70860.0,70859.0,0.02]
[1717589636329,0.2569,70860.0,70859.0,0.09318078]
[1717589636545,0.19,70869.0,70865.0,0.02]
[1717589636788,0.0669,70866.0,70865.0,0.02]
[1717589637000,0.0669,70866.0,70865.0,0.09316381]
[1717589637198,0.0669,70866.0,70865.0,0.02]
[1717589637403,0.33441893,70869.0,70867.0,0.02]
[1717589637735,0.33441893,70869.0,70868.0,0.02]
[1717589637878,0.19,70869.0,70868.0,0.02]
[1717589638074,0.2569,70869.0,70868.0,0.02]
[1717589638713,0.3274,70869.0,70866.0,0.16111]
[1717589638929,0.0669,70867.0,70866.0,0.14111]
[1717589639137,0.28354717,70867.0,70859.0,0.14227662]
[1717589639334,0.19,70860.0,70856.0,0.01432029]
[1717589639480,0.0669,70858.0,70856.0,0.01432029]
[1717589639689,0.19,70860.0,70856.0,0.01432029]
[1717589639897,0.0669,70857.0,70856.0,0.17545129]
[1717589642271,0.0669,70857.0,70856.0,0.15545129]
[1717589643500,0.0669,70857.0,70856.0,0.17545129]
[1717589644668,0.0669,70857.0,70856.0,0.15545129]
[1717589644872,0.21131893,70857.0,70856.0,0.01432029]
[1717589645327,0.21131893,70857.0,70851.0,0.002946]
[1717589645464,0.2569,70852.0,70851.0,0.01726629]
[1717589646624,0.19,70852.0,70851.0,0.03726629]
[1717589647211,0.19,70865.0,70858.0,0.02]
[1717589647419,0.14441893,70864.0,70859.0,0.02]
[1717589647600,0.14441893,70864.0,70853.0,0.141136]
[1717589647601,0.0669,70862.0,70858.0,0.02]
[1717589648046,0.0669,70862.0,70861.0,0.02]
[1717589648254,0.0669,70862.0,70853.0,0.141136]
[1717589648255,0.0669,70862.0,70860.0,0.02]
[1717589648423,0.07636399,70862.0,70860.0,0.02]
[1717589649015,0.07636399,70862.0,70861.0,0.02]
[1717589649264,0.07636399,70862.0,70860.0,0.02]
[1717589649439,0.07636399,70862.0,70859.0,0.02]
[1717589649651,0.07636399,70862.0,70859.0,0.01]
[1717589649964,0.07636399,70862.0,70858.0,0.02]
[1717589650324,0.07636399,70862.0,70859.0,0.01]
[1717589650788,0.07636399,70862.0,70858.0,0.02]
[1717589651150,0.0669,70859.0,70858.0,0.02]
[1717589651362,0.0669,70859.0,70857.0,0.02]
[1717589651767,0.00946285,70858.0,70857.0,0.02]
[1717589652174,0.00946285,70858.0,70855.0,0.161133]
[1717589652175,0.07636285,70858.0,70855.0,0.161133]
[1717589652374,0.0669,70858.0,70854.0,0.000946]
[1717589652575,0.00946285,70857.0,70854.0,0.020946]
[1717589652989,0.00946285,70857.0,70856.0,0.02]
[1717589653627,0.00946285,70857.0,70856.0,0.161131]
[1717589653983,0.1374,70859.0,70857.0,0.02]
[1717589654338,0.1374,70859.0,70856.0,0.141131]
[1717589655369,0.0705,70859.0,70856.0,0.141131]
[1717589655723,0.0669,70857.0,70856.0,0.141131]
[1717589656332,0.0669,70857.0,70856.0,0.161131]
[1717589656571,0.0669,70857.0,70856.0,0.141131]
[1717589658446,0.0669,70857.0,70854.0,0.000946]
[1717589658648,0.19,70855.0,70854.0,0.000946]
[1717589663318,0.19946833,70855.0,70854.0,0.000946]
[1717589663566,0.34388726,70855.0,70854.0,0.000946]
[1717589663769,0.34388726,70855.0,70854.0,0.01526629]
[1717589663925,0.34388726,70855.0,70854.0,0.000946]
[1717589665006,0.41438726,70855.0,70854.0,0.000946]
[1717589665362,0.26996833,70855.0,70854.0,0.000946]
[1717589666967,0.41438726,70855.0,70854.0,0.000946]
[1717589668893,0.55552026,70855.0,70854.0,0.000946]
[1717589669481,0.57552026,70855.0,70854.0,0.000946]
[1717589669706,0.55552026,70855.0,70854.0,0.000946]
[1717589670925,0.55852026,70855.0,70854.0,0.000946]
[1717589671119,0.56252026,70855.0,70854.0,0.000946]
[1717589671478,0.55852026,70855.0,70854.0,0.000946]
[1717589671930,0.56452026,70855.0,70854.0,0.000946]
[1717589672656,0.63142026,70855.0,70854.0,0.000946]
[1717589672859,0.62842026,70855.0,70854.0,0.000946]
[1717589673209,0.63342026,70855.0,70854.0,0.000946]
[1717589673417,0.62742026,70855.0,70854.0,0.000946]
[1717589673636,0.63242026,70855.0,70854.0,0.000946]
[1717589673844,0.27996833,70855.0,70854.0,0.000946]
[1717589673977,0.62742026,70855.0,70854.0,0.000946]
[1717589674331,0.63242026,70855.0,70854.0,0.000946]
[1717589674914,0.56552026,70855.0,70854.0,0.000946]
[1717589675097,0.63242026,70855.0,70854.0,0.000946]
[1717589676705,0.34686833,70855.0,70854.0,0.000946]
[1717589678968,0.27996833,70855.0,70854.0,0.000946]
[1717589679168,0.34686833,70855.0,70854.0,0.000946]
[1717589682707,0.27996833,70855.0,70854.0,0.000946]
[1717589682922,0.34686833,70855.0,70854.0,0.000946]
[1717589683810,0.27996833,70855.0,70854.0,0.000946]
[1717589684075,0.34686833,70855.0,70854.0,0.000946]
[1717589686337,0.27496833,70855.0,70854.0,0.000946]
[1717589686580,0.34186833,70855.0,70854.0,0.000946]
[1717589686812,0.33686833,70855.0,70854.0,0.000946]
[1717589687053,0.33686833,70855.0,70854.0,0.001946]
[1717589687522,0.33686833,70855.0,70854.0,0.000946]
[1717589687742,0.33686833,70855.0,70854.0,0.001946]
[1717589688188,0.33686833,70855.0,70854.0,0.000946]
[1717589688343,0.33686833,70855.0,70854.0,0.001946]
[1717589689887,0.33686833,70855.0,70854.0,0.000946]
[1717589690316,0.33686833,70855.0,70854.0,0.001946]
[1717589691069,0.26996833,70855.0,70854.0,0.000946]
[1717589691340,0.33686833,70855.0,70854.0,0.000946]
[1717589691578,0.33686833,70855.0,70854.0,0.001946]
[1717589692341,0.26996833,70855.0,70854.0,0.001946]
[1717589692760,0.33686833,70855.0,70854.0,0.001946]
[1717589695453,0.26996833,70855.0,70854.0,0.001946]
[1717589695653,0.33686833,70855.0,70854.0,0.001946]
[1717589697247,0.26996833,70855.0,70854.0,0.000946]
[1717589697477,0.33686833,70855.0,70854.0,0.000946]
[1717589697679,0.34286833,70855.0,70854.0,0.000946]
[1717589697853,0.33686833,70855.0,70854.0,0.000946]
[1717589698058,0.26996833,70855.0,70854.0,0.000946]
[1717589698294,0.34286833,70855.0,70854.0,0.000946]
[1717589699800,0.48400133,70855.0,70854.0,0.000946]
[1717589700053,0.49000133,70855.0,70854.0,0.000946]
[1717589700701,0.42310133,70855.0,70854.0,0.000946]
[1717589700908,0.49000133,70855.0,70854.0,0.000946]
[1717589701108,0.09196833,70855.0,70854.0,0.000946]
[1717589701675,0.15886833,70855.0,70854.0,0.000946]
[1717589702682,0.08596833,70855.0,70854.0,0.020946]
[1717589703503,0.08596833,70855.0,70854.0,0.162081]
[1717589703924,0.0705,70855.0,70854.0,0.162081]
[1717589704131,0.08079331,70855.0,70854.0,0.163081]
[1717589704255,0.08079331,70855.0,70854.0,0.164081]
[1717589704468,0.08079331,70855.0,70854.0,1.02384517]
[1717589704829,0.0705,70855.0,70854.0,1.32844316]
[1717589705135,0.0705,70855.0,70854.0,1.32944316]
[1717589705335,0.0705,70855.0,70854.0,1.32844316]
[1717589705540,0.0705,70855.0,70854.0,1.78738517]
[1717589705697,0.00086,70861.0,70860.0,0.843369]
[1717589705906,0.00086,70861.0,70860.0,1.53723393]
[1717589706115,0.00086,70861.0,70860.0,3.91121193]
[1717589706315,0.00086,70861.0,70860.0,4.08667193]
[1717589706516,0.00086,70861.0,70860.0,4.43782504]
[1717589706702,0.00086,70863.0,70862.0,1.125595]
[1717589706902,0.00086,70863.0,70862.0,1.11077593]
[1717589707102,0.00086,70863.0,70862.0,1.18482993]
[1717589707377,0.00086,70863.0,70862.0,0.98777593]
[1717589707531,0.00086,70863.0,70862.0,2.04048793]
[1717589707695,0.00086,70863.0,70862.0,2.01813393]
[1717589708255,0.00086,70863.0,70862.0,2.14551591]
[1717589708462,0.00086,70863.0,70862.0,1.23915791]
[1717589708693,0.19,70890.0,70880.0,0.161083]
[1717589708900,0.00086,70900.0,70880.0,0.47540329]
[1717589709238,0.00086,70900.0,70880.0,0.61982222]
[1717589709443,0.00086,70900.0,70898.0,0.161047]
[1717589709662,0.00086,70900.0,70898.0,0.27536729]
[1717589710710,0.00086,70900.0,70898.0,0.27636729]
[1717589711333,0.00086,70900.0,70898.0,0.27536729]
[1717589711531,0.00086,70900.0,70898.0,0.92325522]
[1717589712119,0.00086,70900.0,70898.0,0.92425522]
[1717589712319,0.00086,70900.0,70898.0,0.92325522]
[1717589712699,0.00086,70900.0,70898.0,0.92425522]
[1717589712903,0.00086,70900.0,70898.0,0.92325522]
[1717589713419,0.00086,70900.0,70898.0,1.20535022]
[1717589713621,0.00086,70900.0,70898.0,1.30535022]
[1717589713839,0.00086,70900.0,70898.0,1.10535022]
[1717589714040,0.00086,70900.0,70898.0,0.62754722]
[1717589714358,0.00086,70900.0,70898.0,0.62654722]
[1717589714713,0.00086,70900.0,70898.0,0.61322693]
[1717589715173,0.00086,70900.0,70898.0,0.81322693]
[1717589715368,0.00086,70900.0,70898.0,1.09532193]
[1717589716610,0.00086,70900.0,70898.0,1.64461693]
[1717589716813,0.00086,70900.0,70898.0,1.53785593]
[1717589717035,0.00086,70900.0,70898.0,3.27945611]
[1717589717417,0.00086,70900.0,70898.0,2.53348793]
[1717589717999,0.00086,70900.0,70898.0,2.53248793]
[1717589718352,0.00086,70900.0,70898.0,2.53348793]
[1717589718979,0.00086,70900.0,70898.0,2.61129136]
[1717589719383,0.00086,70900.0,70898.0,2.58371529]
[1717589719581,0.00086,70900.0,70899.0,1.71949895]
[1717589719782,0.002,70909.0,70908.0,0.743082]
[1717589719990,0.002,70909.0,70908.0,1.29255593]
[1717589720194,0.002,70909.0,70908.0,1.55975593]
[1717589720349,0.002,70909.0,70908.0,4.49151217]
[1717589720554,0.002,70909.0,70908.0,4.46849617]
[1717589720814,0.002,70909.0,70908.0,4.44687346]
[1717589721110,0.002,70909.0,70908.0,4.31359446]
[1717589721327,0.004,70919.0,70918.0,0.843022]
[1717589721536,0.004,70919.0,70918.0,1.10176122]
[1717589721740,0.004,70919.0,70918.0,2.95597422]
[1717589721945,0.004,70919.0,70918.0,1.40677622]
[1717589722150,0.004,70919.0,70918.0,3.64143622]
[1717589722366,0.004,70919.0,70918.0,4.30170522]
[1717589722572,0.00086,70932.0,70918.0,4.30170522]
[1717589722573,0.00086,70932.0,70926.0,0.42]
[1717589722807,0.00086,70932.0,70926.0,1.47079364]
[1717589723010,0.00086,70932.0,70926.0,3.64564864]
[1717589723222,0.00086,70932.0,70926.0,3.61215963]
[1717589723423,0.00086,70932.0,70926.0,1.47701655]
[1717589723644,0.00086,70932.0,70926.0,5.07072055]
[1717589723859,0.00086,70932.0,70926.0,4.87333055]
[1717589724055,0.00863,70934.0,70932.0,0.42]
[1717589724267,0.00863,70934.0,70933.0,0.842934]
[1717589724469,0.00863,70934.0,70933.0,1.35835392]
[1717589724644,0.00863,70934.0,70933.0,3.44514892]
[1717589725250,0.00086,70937.0,70936.0,0.560972]
[1717589725446,0.00086,70937.0,70936.0,0.91441974]
[1717589725654,0.00086,70937.0,70936.0,1.19636374]
[1717589725852,0.004,70959.0,70941.0,1.042886]
[1717589726099,0.004,70959.0,70941.0,1.47750493]
[1717589726231,0.004,70959.0,70941.0,4.47622624]
[1717589726449,0.004,70959.0,70948.0,0.842844]
[1717589726654,0.004,70959.0,70948.0,1.49189786]
[1717589726860,0.004,70959.0,70948.0,3.49706586]
[1717589727061,0.004,70959.0,70948.0,3.86578081]
[1717589727261,0.004,70959.0,70948.0,3.71156681]
[1717589727913,0.004,70959.0,70958.0,0.742784]
[1717589728115,0.004,70959.0,70958.0,1.27740293]
[1717589728338,0.004,70959.0,70958.0,3.08550872]
[1717589728546,0.004,70959.0,70958.0,1.36853972]
[1717589728774,0.004,70959.0,70958.0,2.75150672]
[1717589729008,0.004,70959.0,70958.0,1.66695972]
[1717589729214,0.004,70959.0,70958.0,1.66195972]
[1717589729420,0.004,70959.0,70958.0,1.66295972]
[1717589729564,0.004,70959.0,70958.0,1.66195972]
[1717589730809,0.00863,70970.0,70968.0,0.215]
[1717589731014,0.002,70989.0,70973.0,0.896797]
[1717589731213,0.002,70989.0,70978.0,0.919442]
[1717589731413,0.002,70989.0,70978.0,0.98123036]
[1717589731614,0.002,70989.0,70978.0,1.47761627]
[1717589731931,0.002,70989.0,70978.0,1.41273527]
[1717589732130,0.002,70989.0,70988.0,0.140868]
[1717589732339,0.0131719,70989.0,70988.0,0.34451204]
[1717589732539,0.002,70989.0,70988.0,0.36451204]
[1717589732747,0.002,70989.0,70988.0,0.34451204]
[1717589733500,0.002,70989.0,70988.0,0.50893097]
[1717589735476,0.002,70989.0,70988.0,0.70893097]
[1717589735626,0.002,70989.0,70988.0,1.08566797]
[1717589735829,0.002,70989.0,70988.0,1.10866797]
[1717589736033,0.002,70989.0,70988.0,1.34272697]
[1717589736920,0.002,70989.0,70988.0,1.14272697]
[1717589737350,0.002,70989.0,70988.0,1.12840668]
[1717589737587,0.002,70989.0,70988.0,1.32840668]
[1717589738079,0.002,70989.0,70988.0,1.12840668]
[1717589738890,0.002,70989.0,70988.0,1.32840668]
[1717589739990,0.002,70989.0,70988.0,1.37608468]
[1717589740177,0.002,70989.0,70988.0,2.76642168]
[1717589740403,0.002,70989.0,70988.0,2.48642168]
[1717589740841,0.002,70989.0,70988.0,0.81703024]
[1717589741061,0.002,70989.0,70988.0,0.83703024]
[1717589741922,0.002,70989.0,70988.0,0.71703024]
[1717589742120,0.002,70989.0,70988.0,0.4681909]
[1717589742673,0.002,70989.0,70988.0,0.43529324]
[1717589743698,0.002,70989.0,70988.0,0.4450548]
[1717589743901,0.002,70989.0,70988.0,0.5630548]
[1717589744391,0.002,70989.0,70988.0,0.75970671]
[1717589744617,0.002,70989.0,70988.0,0.45796971]
[1717589744789,0.002,70989.0,70988.0,0.47796971]
[1717589744988,0.002,70989.0,70988.0,0.4450548]
[1717589745213,0.002,70989.0,70988.0,0.4250548]
[1717589746420,0.002,70989.0,70988.0,0.38528693]
[1717589746570,0.002,70989.0,70988.0,0.240868]
[1717589746772,0.002,70989.0,70988.0,0.28063587]
[1717589747110,0.002,70989.0,70988.0,0.240868]
[1717589747937,0.002,70989.0,70988.0,0.40528693]
[1717589749208,0.002,70989.0,70988.0,0.8217918]
[1717589749413,0.002,70989.0,70988.0,1.54008471]
[1717589749623,0.002,70989.0,70988.0,1.4936218]
[1717589749832,0.002,70989.0,70988.0,1.4439048]
[1717589750036,0.002,70989.0,70988.0,1.5439048]
[1717589750244,0.002,70989.0,70988.0,1.58139433]
[1717589750436,0.002,70989.0,70988.0,1.48139433]
[1717589750580,0.002,70989.0,70988.0,1.58139433]
[1717589750783,0.002,70989.0,70988.0,1.48139433]
[1717589751008,0.002,70989.0,70988.0,1.86313133]
[1717589752226,0.001,71000.0,70989.0,1.19640492]
[1717589752438,0.001,71000.0,70989.0,1.71757238]
[1717589752658,0.001,71000.0,70989.0,4.19455238]
[1717589752859,0.001,71000.0,70989.0,3.94414638]
[1717589753109,0.001,71000.0,70989.0,3.90658438]
[1717589753947,0.001,71000.0,70989.0,3.73938438]
[1717589754145,0.001,71000.0,70989.0,3.90658438]
[1717589754563,0.001,71000.0,70998.0,1.119245]
[1717589754766,0.001,71000.0,70998.0,1.74873685]
[1717589754973,0.001,71000.0,70998.0,0.140849]
[1717589755180,0.001,71000.0,70998.0,0.28526793]
[1717589755181,0.01380986,70999.0,70998.0,0.28526793]
[1717589755385,0.004,70999.0,70998.0,0.140849]
[1717589755586,0.004,70999.0,70996.0,0.15137674]
[1717589755784,0.004,70999.0,70991.0,0.140861]
[1717589756044,0.00976197,70998.0,70992.0,0.14441893]
[1717589756369,0.00976197,70998.0,70993.0,0.1]
[1717589756630,0.1672,70996.0,70993.0,0.1]
[1717589756874,0.1672,70996.0,70989.0,0.01432029]
[1717589756875,0.005,70994.0,70989.0,0.01432029]
[1717589757058,0.005,70992.0,70989.0,0.01432029]
[1717589757266,0.1672,70990.0,70989.0,0.01432029]
[1717589757601,0.17691038,70990.0,70989.0,0.01432029]
[1717589757857,0.00971038,70990.0,70989.0,0.01432029]
[1717589758232,0.005,70992.0,70989.0,0.01432029]
[1717589758413,0.0096342,70991.0,70989.0,0.01432029]
[1717589759042,0.005,70981.0,70980.0,0.01052574]
[1717589759317,0.19,70977.0,70976.0,0.01432029]
[1717589761542,0.005,70954.0,70953.0,0.15633661]
[1717589761741,0.005,70954.0,70951.0,0.002]
[1717589761742,0.1672,70956.0,70951.0,0.002]
[1717589762085,0.21865255,70955.0,70953.0,0.00720909]
[1717589762261,0.23865255,70955.0,70953.0,0.00720909]
[1717589762464,0.02,70954.0,70953.0,0.00720909]
[1717589762906,0.03046976,70954.0,70953.0,0.00720909]
[1717589763111,0.24711693,70954.0,70953.0,0.00720909]
[1717589763532,0.45581693,70954.0,70953.0,0.00720909]
[1717589763657,0.85581693,70954.0,70953.0,0.00720909]
[1717589764088,0.21,70942.0,70941.0,0.004]
[1717589764293,0.56311893,70942.0,70941.0,0.004]
[1717589764497,0.71475166,70942.0,70941.0,0.004]
[1717589764899,0.35098,70932.0,70921.0,0.004]
[1717589765231,0.71476289,70932.0,70921.0,0.004]
[1717589765667,0.01066396,70932.0,70921.0,0.004]
[1717589765852,0.01066396,70932.0,70921.0,0.00963925]
[1717589766052,0.160966,70939.0,70921.0,0.004]
[1717589766289,0.01065774,70932.0,70923.0,0.140997]
[1717589766511,0.19,70940.0,70924.0,0.31886248]
[1717589766709,0.1,70955.0,70924.0,0.31886248]
[1717589766710,0.01061251,70932.0,70931.0,0.142982]
[1717589766932,0.140948,70948.0,70931.0,0.142982]
[1717589767129,0.140948,70948.0,70931.0,0.002]
[1717589767130,0.005,70942.0,70931.0,0.002]
[1717589767334,0.15095,70947.0,70931.0,0.002]
[1717589767335,0.15156583,70947.0,70931.0,0.002]
[1717589767543,0.01061196,70941.0,70932.0,0.09786662]
[1717589767798,0.19,70950.0,70934.0,0.140976]
[1717589767984,0.14441893,70949.0,70935.0,0.1]
[1717589768220,0.15503857,70949.0,70935.0,0.1]
[1717589768828,0.15503857,70949.0,70936.0,0.14097]
[1717589770755,0.01061964,70949.0,70938.0,0.140967]
[1717589770959,0.01061964,70949.0,70939.0,0.12]
[1717589771198,0.01061964,70949.0,70939.0,0.02]
[1717589771401,0.19,70950.0,70935.0,0.1]
[1717589771581,0.01062648,70948.0,70935.0,0.240972]
[1717589771798,0.19,70950.0,70941.0,0.140962]
[1717589772083,0.140923,70961.0,70947.0,0.02]
[1717589772285,0.14441893,70960.0,70943.0,0.02]
[1717589772531,0.15504676,70960.0,70947.0,0.14095]
[1717589773914,0.15504676,70960.0,70947.0,0.16095]
[1717589774124,0.15504676,70960.0,70948.0,0.140947]
[1717589774329,0.15504676,70960.0,70948.0,0.160947]
[1717589774717,0.15504676,70960.0,70949.0,0.140946]
[1717589775189,0.15504676,70960.0,70952.0,0.140939]
[1717589775190,0.01062783,70960.0,70952.0,0.140939]
[1717589775409,0.01062783,70960.0,70951.0,0.02]
[1717589775583,0.01062783,70960.0,70954.0,0.140935]
[1717589775868,0.19,70964.0,70954.0,0.140935]
[1717589776044,0.19,70964.0,70955.0,0.140933]
[1717589776245,0.01064634,70963.0,70955.0,0.02]
[1717589776456,0.01064634,70963.0,70944.0,0.07222824]
[1717589776457,0.01064634,70963.0,70957.0,0.02]
[1717589776652,0.14441893,70970.0,70960.0,0.140924]
[1717589777019,0.0106573,70969.0,70960.0,0.140924]
[1717589777429,0.0106573,70969.0,70961.0,0.140921]
[1717589777850,0.0106573,70969.0,70956.0,0.140931]
[1717589778104,0.0106573,70969.0,70958.0,0.02]
[1717589778450,0.0106573,70969.0,70960.0,0.140923]
[1717589779198,0.0106573,70969.0,70961.0,0.02]
[1717589779630,0.19,70972.0,70965.0,0.140914]
[1717589780029,0.01066111,70971.0,70965.0,0.140914]
[1717589781315,0.07222824,70969.0,70965.0,0.140914]
[1717589781734,0.01065539,70968.0,70965.0,0.140914]
[1717589782154,0.01065539,70968.0,70960.0,0.140924]
[1717589782352,0.01065539,70968.0,70962.0,0.140919]
[1717589782918,0.01065539,70968.0,70953.0,0.1]
[1717589783119,0.01065539,70968.0,70955.0,0.140934]
[1717589783120,0.07222824,70960.0,70955.0,0.140934]
[1717589783320,0.07222824,70960.0,70950.0,0.140942]
[1717589783584,0.07222824,70952.0,70951.0,0.1]
[1717589783943,0.08301531,70952.0,70941.0,0.14096]
[1717589785169,0.08301531,70952.0,70942.0,0.1]
[1717589785543,0.08301531,70952.0,70937.0,0.02]
[1717589785715,0.08301531,70952.0,70940.0,0.02]
[1717589785965,0.19,70956.0,70943.0,0.02]
[1717589786139,0.01077272,70951.0,70943.0,0.02563738]
[1717589786353,0.19,70956.0,70939.0,0.1]
[1717589786563,0.19,70956.0,70946.0,0.140951]
[1717589786709,0.01077732,70955.0,70947.0,0.1]
[1717589787531,0.07222824,70952.0,70947.0,0.1]
[1717589787993,0.07222824,70952.0,70939.0,0.1]
[1717589787994,0.01077272,70951.0,70939.0,0.1]
[1717589788399,0.01077272,70951.0,70939.0,0.240965]
[1717589789028,0.02,70950.0,70939.0,0.1]